[Event "Titled Tuesday Blitz November 22 Late 2022"]
[White "Fernandez De La Vara, Arnaldo"]
[Black "Gareyev, Timur"]
[WhiteFideId "3518388"]
[BlackFideId "14200937"]
[WhiteElo "2387"]
[BlackElo "2552"]
[Result "0-1"]
[Round "08"]
[TimeControl "180+1"]
[Date "2022.11.22"]
[WhiteClock "0:00:02"]
[BlackClock "0:00:07"]

1. Nf3 {[%clk 0:03:00]}  d6 {[%clk 0:02:42]} 2. d4 {[%clk 0:03:00]}  Bf5 {[%clk 0:02:38]} 3. g3 {[%clk 0:02:59]}  Nf6 {[%clk 0:02:37]} 4. Bg2 {[%clk 0:02:59]}  c6 {[%clk 0:02:37]} 5. b3 {[%clk 0:02:57]}  h6 {[%clk 0:02:35]} 6. c4 {[%clk 0:02:49]}  e6 {[%clk 0:02:34]} 7. O-O {[%clk 0:02:44]}  Be7 {[%clk 0:02:28]} 8. Nc3 {[%clk 0:02:36]}  Ne4 {[%clk 0:02:15]} 9. Bb2 {[%clk 0:02:30]}  O-O {[%clk 0:02:09]} 10. Nd2 {[%clk 0:02:11]}  Nxc3 {[%clk 0:02:03]} 11. Bxc3 {[%clk 0:02:11]}  d5 {[%clk 0:01:57]} 12. e4 {[%clk 0:02:09]}  dxe4 {[%clk 0:01:57]} 13. Bxe4 {[%clk 0:02:10]}  Bxe4 {[%clk 0:01:47]} 14. Nxe4 {[%clk 0:02:11]}  Na6 {[%clk 0:01:38]} 15. Qf3 {[%clk 0:02:04]}  Qc7 {[%clk 0:01:28]} 16. Rfd1 {[%clk 0:01:58]}  Rad8 {[%clk 0:01:28]} 17. Rac1 {[%clk 0:01:49]}  Qb8 {[%clk 0:01:10]} 18. Qh5 {[%clk 0:01:44]}  Rd7 {[%clk 0:01:04]} 19. f4 {[%clk 0:01:34]}  Rfd8 {[%clk 0:01:02]} 20. f5 {[%clk 0:01:33]}  exf5 {[%clk 0:00:58]} 21. Qxf5 {[%clk 0:01:33]}  Ba3 {[%clk 0:00:51]} 22. Rc2 {[%clk 0:01:24]}  Qc8 {[%clk 0:00:37]} 23. Rf2 {[%clk 0:01:16]}  Bb4 {[%clk 0:00:31]} 24. Bb2 {[%clk 0:01:10]}  Re7 {[%clk 0:00:22]} 25. Qf3 {[%clk 0:00:43]}  Qe6 {[%clk 0:00:16]} 26. Re2 {[%clk 0:00:35]}  f5 {[%clk 0:00:15]} 27. Nc3 {[%clk 0:00:26]}  Qf7 {[%clk 0:00:15]} 28. a3 {[%clk 0:00:13]}  Rxe2 {[%clk 0:00:14]} 29. Nxe2 {[%clk 0:00:14]}  Bf8 {[%clk 0:00:13]} 30. Nf4 {[%clk 0:00:14]}  Nc7 {[%clk 0:00:13]} 31. Nd3 {[%clk 0:00:14]}  Bd6 {[%clk 0:00:11]} 32. Rf1 {[%clk 0:00:11]}  Rf8 {[%clk 0:00:09]} 33. Re1 {[%clk 0:00:11]}  Ne6 {[%clk 0:00:09]} 34. Ne5 {[%clk 0:00:11]}  Bxe5 {[%clk 0:00:09]} 35. Rxe5 {[%clk 0:00:12]}  Ng5 {[%clk 0:00:09]} 36. Qe2 {[%clk 0:00:05]}  f4 {[%clk 0:00:09]} 37. Re7 {[%clk 0:00:06]}  Nh3+ {[%clk 0:00:07]} 38. Kh1 {[%clk 0:00:06]}  f3 {[%clk 0:00:08]} 39. Rxf7 {[%clk 0:00:03]}  fxe2 {[%clk 0:00:06]} 40. Rxf8+ {[%clk 0:00:04]}  Kxf8 {[%clk 0:00:06]} 41. Bc3 {[%clk 0:00:04]}  Nf2+ {[%clk 0:00:06]} 42. Kg2 {[%clk 0:00:05]}  Nd3 {[%clk 0:00:07]} 43. Kf3 {[%clk 0:00:06]}  e1=Q {[%clk 0:00:06]} 44. Bxe1 {[%clk 0:00:06]}  Nxe1+ {[%clk 0:00:07]} 45. Ke4 {[%clk 0:00:07]}  Nc2 {[%clk 0:00:08]} 46. a4 {[%clk 0:00:07]}  Ke7 {[%clk 0:00:08]} 47. Ke5 {[%clk 0:00:04]}  a5 {[%clk 0:00:07]} 48. d5 {[%clk 0:00:04]}  Na1 {[%clk 0:00:08]} 49. dxc6 {[%clk 0:00:03]}  bxc6 {[%clk 0:00:08]} 50. b4 {[%clk 0:00:02]}  axb4 {[%clk 0:00:08]} 51. a5 {[%clk 0:00:03]}  b3 {[%clk 0:00:08]} 52. a6 {[%clk 0:00:04]}  b2 {[%clk 0:00:09]} 53. a7 {[%clk 0:00:05]}  b1=Q {[%clk 0:00:09]} 54. a8=Q {[%clk 0:00:05]}  Qb2+ {[%clk 0:00:09]} 55. Kf5 {[%clk 0:00:04]}  Qf6+ {[%clk 0:00:09]} 56. Ke4 {[%clk 0:00:03]}  Kf7 {[%clk 0:00:09]} 57. Qa7+ {[%clk 0:00:01]}  Kg6 {[%clk 0:00:09]} 58. Qa2 {[%clk 0:00:02]}  Nc2 {[%clk 0:00:07]} 59. Kd3 {[%clk 0:00:01]}  Nb4+ {[%clk 0:00:07]} 60. Ke3 {[%clk 0:00:02]}  Nxa2 {[%clk 0:00:07]} 0-1


[Site "https://www.chess.com"]

[Event "Titled Tuesday Blitz November 22 Late 2022"]
[White "Filgueira, Hernan"]
[Black "Fernandez Garcia, Gumersindo"]
[WhiteFideId "101770"]
[BlackFideId "24516740"]
[WhiteElo "2363"]
[BlackElo "2140"]
[Result "1-0"]
[Round "08"]
[TimeControl "180+1"]
[Date "2022.11.23"]
[WhiteClock "0:00:43"]
[BlackClock "0:00:13"]

1. e4 {[%clk 0:02:58]}  d6 {[%clk 0:02:57]} 2. d4 {[%clk 0:02:58]}  Nf6 {[%clk 0:02:58]} 3. Nc3 {[%clk 0:02:58]}  e5 {[%clk 0:02:59]} 4. Nf3 {[%clk 0:02:58]}  Nbd7 {[%clk 0:02:58]} 5. Bc4 {[%clk 0:02:58]}  h6 {[%clk 0:02:54]} 6. a4 {[%clk 0:02:57]}  c6 {[%clk 0:02:54]} 7. Ba2 {[%clk 0:02:56]}  Be7 {[%clk 0:02:53]} 8. h3 {[%clk 0:02:56]}  Qc7 {[%clk 0:02:53]} 9. Be3 {[%clk 0:02:55]}  O-O {[%clk 0:02:50]} 10. O-O {[%clk 0:02:54]}  a6 {[%clk 0:02:48]} 11. a5 {[%clk 0:02:51]}  Rd8 {[%clk 0:02:44]} 12. Qe2 {[%clk 0:02:49]}  Nf8 {[%clk 0:02:42]} 13. dxe5 {[%clk 0:02:46]}  dxe5 {[%clk 0:02:42]} 14. Bb6 {[%clk 0:02:46]}  Qb8 {[%clk 0:02:34]} 15. Bxd8 {[%clk 0:02:44]}  Bxd8 {[%clk 0:02:35]} 16. Rfd1 {[%clk 0:02:36]}  Bc7 {[%clk 0:02:35]} 17. Bb3 {[%clk 0:02:31]}  Be6 {[%clk 0:02:34]} 18. Bxe6 {[%clk 0:02:25]}  Nxe6 {[%clk 0:02:35]} 19. g3 {[%clk 0:02:26]}  Qa7 {[%clk 0:02:29]} 20. Qc4 {[%clk 0:02:14]}  Re8 {[%clk 0:02:24]} 21. Nh4 {[%clk 0:02:09]}  Ng5 {[%clk 0:02:19]} 22. Kg2 {[%clk 0:02:07]}  Qb8 {[%clk 0:02:09]} 23. Nf5 {[%clk 0:02:02]}  Qc8 {[%clk 0:02:08]} 24. f3 {[%clk 0:01:49]}  Kh7 {[%clk 0:01:54]} 25. h4 {[%clk 0:01:49]}  Ne6 {[%clk 0:01:52]} 26. Nd6 {[%clk 0:01:40]}  Bxd6 {[%clk 0:01:49]} 27. Rxd6 {[%clk 0:01:40]}  Qc7 {[%clk 0:01:42]} 28. Rd2 {[%clk 0:01:38]}  Nd4 {[%clk 0:01:34]} 29. Ne2 {[%clk 0:01:36]}  Ne6 {[%clk 0:01:28]} 30. b4 {[%clk 0:01:33]}  Rg8 {[%clk 0:01:22]} 31. Rh1 {[%clk 0:01:21]}  Re8 {[%clk 0:01:11]} 32. c3 {[%clk 0:01:17]}  Rg8 {[%clk 0:01:04]} 33. Qd3 {[%clk 0:01:15]}  Rd8 {[%clk 0:00:50]} 34. Qe3 {[%clk 0:01:14]}  Re8 {[%clk 0:00:49]} 35. Qb6 {[%clk 0:01:10]}  Qc8 {[%clk 0:00:49]} 36. Rhd1 {[%clk 0:01:08]}  Rg8 {[%clk 0:00:46]} 37. Rh1 {[%clk 0:01:05]}  Re8 {[%clk 0:00:46]} 38. Qe3 {[%clk 0:01:05]}  Rg8 {[%clk 0:00:46]} 39. h5 {[%clk 0:01:04]}  Re8 {[%clk 0:00:45]} 40. g4 {[%clk 0:01:03]}  Kg8 {[%clk 0:00:44]} 41. Rhd1 {[%clk 0:01:02]}  Kh7 {[%clk 0:00:43]} 42. Rd6 {[%clk 0:00:58]}  Rg8 {[%clk 0:00:42]} 43. c4 {[%clk 0:00:56]}  Re8 {[%clk 0:00:42]} 44. c5 {[%clk 0:00:56]}  Rg8 {[%clk 0:00:41]} 45. Qc3 {[%clk 0:00:56]}  g6 {[%clk 0:00:38]} 46. Qxe5 {[%clk 0:00:54]}  Ne8 {[%clk 0:00:27]} 47. hxg6+ {[%clk 0:00:53]}  Rxg6 {[%clk 0:00:25]} 48. Rd7 {[%clk 0:00:52]}  N8g7 {[%clk 0:00:20]} 49. Rxf7 {[%clk 0:00:51]}  Ng5 {[%clk 0:00:19]} 50. Rf6 {[%clk 0:00:46]}  Rxf6 {[%clk 0:00:16]} 51. Qxf6 {[%clk 0:00:46]}  Qe8 {[%clk 0:00:16]} 52. Rd6 {[%clk 0:00:45]}  Nxe4 {[%clk 0:00:15]} 53. Qxh6+ {[%clk 0:00:43]}  Kg8 {[%clk 0:00:15]} 54. Rg6 {[%clk 0:00:42]}  Qe7 {[%clk 0:00:12]} 55. Rxg7+ {[%clk 0:00:42]}  Qxg7 {[%clk 0:00:12]} 56. Qxg7+ {[%clk 0:00:43]}  Kxg7 {[%clk 0:00:13]} 57. fxe4 {[%clk 0:00:43]} 1-0


[Site "https://www.chess.com"]

[Event "Titled Tuesday Blitz November 22 Late 2022"]
[White "Fiol, Fabrice"]
[Black "Sabar, Ethmane Daouda"]
[WhiteFideId "611670"]
[BlackFideId "19600097"]
[WhiteElo "2443"]
[BlackElo "1950"]
[Result "1-0"]
[Round "08"]
[TimeControl "180+1"]
[Date "2022.11.23"]
[WhiteClock "0:02:30"]
[BlackClock "0:02:40"]

1. e4 {[%clk 0:02:57]}  c5 {[%clk 0:03:00]} 2. Nf3 {[%clk 0:02:57]}  Nc6 {[%clk 0:03:00]} 3. Bb5 {[%clk 0:02:57]}  Na5 {[%clk 0:03:01]} 4. c3 {[%clk 0:02:56]}  a6 {[%clk 0:03:01]} 5. Ba4 {[%clk 0:02:56]}  b5 {[%clk 0:03:01]} 6. Bc2 {[%clk 0:02:56]}  Nc6 {[%clk 0:02:58]} 7. O-O {[%clk 0:02:53]}  e6 {[%clk 0:02:55]} 8. d4 {[%clk 0:02:51]}  cxd4 {[%clk 0:02:55]} 9. cxd4 {[%clk 0:02:51]}  Nf6 {[%clk 0:02:53]} 10. d5 {[%clk 0:02:50]}  exd5 {[%clk 0:02:43]} 11. exd5 {[%clk 0:02:49]}  Ne7 {[%clk 0:02:40]} 12. d6 {[%clk 0:02:30]} 1-0


[Site "https://www.chess.com"]

[Event "Titled Tuesday Blitz November 22 Late 2022"]
[White "Firouzja, Alireza"]
[Black "Jobava, Baadur"]
[WhiteFideId "12573981"]
[BlackFideId "13601520"]
[WhiteElo "2903"]
[BlackElo "2582"]
[Result "0-1"]
[Round "08"]
[TimeControl "180+1"]
[Date "2022.11.22"]
[WhiteClock "0:00:05"]
[BlackClock "0:00:15"]

1. e4 {[%clk 0:03:00]}  e5 {[%clk 0:02:58]} 2. Nf3 {[%clk 0:03:01]}  Nf6 {[%clk 0:02:59]} 3. Nxe5 {[%clk 0:03:01]}  d6 {[%clk 0:02:59]} 4. Nf3 {[%clk 0:03:01]}  Nxe4 {[%clk 0:03:00]} 5. d4 {[%clk 0:03:01]}  d5 {[%clk 0:03:00]} 6. Bd3 {[%clk 0:03:02]}  Bd6 {[%clk 0:03:01]} 7. O-O {[%clk 0:03:03]}  O-O {[%clk 0:03:01]} 8. c4 {[%clk 0:03:04]}  c6 {[%clk 0:03:01]} 9. Re1 {[%clk 0:03:04]}  Re8 {[%clk 0:03:01]} 10. c5 {[%clk 0:03:02]}  Bc7 {[%clk 0:02:57]} 11. Nc3 {[%clk 0:03:03]}  Nxc3 {[%clk 0:02:52]} 12. Rxe8+ {[%clk 0:03:01]}  Qxe8 {[%clk 0:02:52]} 13. bxc3 {[%clk 0:03:02]}  Nd7 {[%clk 0:02:35]} 14. Bg5 {[%clk 0:02:57]}  h6 {[%clk 0:02:27]} 15. Bh4 {[%clk 0:02:57]}  Nf8 {[%clk 0:02:18]} 16. Qc2 {[%clk 0:02:57]}  b6 {[%clk 0:02:06]} 17. Re1 {[%clk 0:02:57]}  Be6 {[%clk 0:02:07]} 18. Ba6 {[%clk 0:02:50]}  Rb8 {[%clk 0:02:01]} 19. Qa4 {[%clk 0:02:43]}  Ng6 {[%clk 0:01:46]} 20. Bg3 {[%clk 0:02:30]}  Qd7 {[%clk 0:01:39]} 21. Bd3 {[%clk 0:02:27]}  Bxg3 {[%clk 0:01:32]} 22. hxg3 {[%clk 0:02:27]}  Ne7 {[%clk 0:01:16]} 23. Ne5 {[%clk 0:02:22]}  Qc7 {[%clk 0:01:16]} 24. Qa3 {[%clk 0:02:22]}  Re8 {[%clk 0:01:06]} 25. Nf3 {[%clk 0:02:17]}  bxc5 {[%clk 0:00:54]} 26. dxc5 {[%clk 0:02:11]}  Bd7 {[%clk 0:00:43]} 27. Nd4 {[%clk 0:02:11]}  Ng6 {[%clk 0:00:37]} 28. Rxe8+ {[%clk 0:02:06]}  Bxe8 {[%clk 0:00:38]} 29. Bxg6 {[%clk 0:02:07]}  fxg6 {[%clk 0:00:38]} 30. Qb2 {[%clk 0:02:07]}  Kh7 {[%clk 0:00:37]} 31. Qe2 {[%clk 0:02:07]}  Bf7 {[%clk 0:00:32]} 32. Qe3 {[%clk 0:02:06]}  Qb7 {[%clk 0:00:23]} 33. Qf4 {[%clk 0:02:01]}  Bg8 {[%clk 0:00:23]} 34. Kh2 {[%clk 0:02:00]}  Qa6 {[%clk 0:00:22]} 35. Qe3 {[%clk 0:01:55]}  Qa4 {[%clk 0:00:19]} 36. a3 {[%clk 0:01:42]}  a5 {[%clk 0:00:18]} 37. f4 {[%clk 0:01:27]}  Qxa3 {[%clk 0:00:19]} 38. Nxc6 {[%clk 0:01:27]}  a4 {[%clk 0:00:19]} 39. Nb4 {[%clk 0:01:25]}  Qb3 {[%clk 0:00:19]} 40. c6 {[%clk 0:01:24]}  Qc4 {[%clk 0:00:19]} 41. Qe5 {[%clk 0:01:13]}  d4 {[%clk 0:00:15]} 42. Qxd4 {[%clk 0:00:38]}  a3 {[%clk 0:00:14]} 43. Qxc4 {[%clk 0:00:24]}  Bxc4 {[%clk 0:00:15]} 44. c7 {[%clk 0:00:24]}  Be6 {[%clk 0:00:15]} 45. Kg1 {[%clk 0:00:25]}  Kg8 {[%clk 0:00:16]} 46. Kf2 {[%clk 0:00:15]}  Kf7 {[%clk 0:00:16]} 47. Ke3 {[%clk 0:00:15]}  Ke8 {[%clk 0:00:16]} 48. Kd4 {[%clk 0:00:15]}  Kd7 {[%clk 0:00:16]} 49. c4 {[%clk 0:00:16]}  Kxc7 {[%clk 0:00:16]} 50. Kc3 {[%clk 0:00:16]}  Kd6 {[%clk 0:00:15]} 51. Nd3 {[%clk 0:00:12]}  a2 {[%clk 0:00:15]} 52. c5+ {[%clk 0:00:13]}  Kc6 {[%clk 0:00:15]} 53. Kb2 {[%clk 0:00:14]}  Bf5 {[%clk 0:00:14]} 54. Ne5+ {[%clk 0:00:10]}  Kxc5 {[%clk 0:00:15]} 55. Kxa2 {[%clk 0:00:11]}  h5 {[%clk 0:00:15]} 56. Kb2 {[%clk 0:00:10]}  Kd4 {[%clk 0:00:16]} 57. Nf3+ {[%clk 0:00:05]}  Ke3 {[%clk 0:00:16]} 58. Nh4 {[%clk 0:00:05]}  Kf2 {[%clk 0:00:15]} 0-1


[Site "https://www.chess.com"]

[Event "Titled Tuesday Blitz November 22 Late 2022"]
[White "Gadimbayli, Abdulla"]
[Black "Svane, Rasmus"]
[WhiteFideId "13404938"]
[BlackFideId "4657101"]
[WhiteElo "2399"]
[BlackElo "2674"]
[Result "1-0"]
[Round "08"]
[TimeControl "180+1"]
[Date "2022.11.22"]
[WhiteClock "0:00:11"]
[BlackClock "0:00:02"]

1. e4 {[%clk 0:02:58]}  c6 {[%clk 0:03:00]} 2. Nf3 {[%clk 0:02:59]}  d5 {[%clk 0:03:01]} 3. exd5 {[%clk 0:02:59]}  cxd5 {[%clk 0:03:02]} 4. Ne5 {[%clk 0:03:00]}  Nc6 {[%clk 0:02:59]} 5. d4 {[%clk 0:03:01]}  a6 {[%clk 0:02:59]} 6. c3 {[%clk 0:03:00]}  Bf5 {[%clk 0:02:54]} 7. Nd2 {[%clk 0:02:59]}  e6 {[%clk 0:02:53]} 8. Qa4 {[%clk 0:02:55]}  Qc7 {[%clk 0:02:42]} 9. Ndf3 {[%clk 0:02:53]}  Bd6 {[%clk 0:02:40]} 10. c4 {[%clk 0:02:39]}  Ne7 {[%clk 0:02:30]} 11. c5 {[%clk 0:02:13]}  Bxe5 {[%clk 0:02:28]} 12. Nxe5 {[%clk 0:02:14]}  O-O {[%clk 0:02:13]} 13. Bf4 {[%clk 0:02:14]}  f6 {[%clk 0:01:59]} 14. Nxc6 {[%clk 0:02:03]}  Qxc6 {[%clk 0:02:00]} 15. Qxc6 {[%clk 0:01:21]}  Nxc6 {[%clk 0:02:01]} 16. Bd6 {[%clk 0:01:22]}  Nxd4 {[%clk 0:01:06]} 17. O-O-O {[%clk 0:01:15]}  e5 {[%clk 0:01:06]} 18. Bxf8 {[%clk 0:00:51]}  Kxf8 {[%clk 0:01:07]} 19. Kd2 {[%clk 0:00:52]}  Rc8 {[%clk 0:00:59]} 20. Rc1 {[%clk 0:00:46]}  Ke7 {[%clk 0:00:59]} 21. Bd3 {[%clk 0:00:42]}  e4 {[%clk 0:00:57]} 22. Bb1 {[%clk 0:00:42]}  Ne6 {[%clk 0:00:54]} 23. f3 {[%clk 0:00:35]}  Bg6 {[%clk 0:00:46]} 24. fxe4 {[%clk 0:00:28]}  dxe4 {[%clk 0:00:47]} 25. Ke3 {[%clk 0:00:29]}  f5 {[%clk 0:00:44]} 26. g3 {[%clk 0:00:29]}  Kf6 {[%clk 0:00:39]} 27. Rhd1 {[%clk 0:00:27]}  Ke5 {[%clk 0:00:39]} 28. a3 {[%clk 0:00:27]}  f4+ {[%clk 0:00:26]} 29. gxf4+ {[%clk 0:00:28]}  Nxf4 {[%clk 0:00:27]} 30. Rd7 {[%clk 0:00:20]}  Nd5+ {[%clk 0:00:25]} 31. Ke2 {[%clk 0:00:18]}  Bh5+ {[%clk 0:00:23]} 32. Ke1 {[%clk 0:00:18]}  Rf8 {[%clk 0:00:08]} 33. Rxb7 {[%clk 0:00:18]}  e3 {[%clk 0:00:07]} 34. c6 {[%clk 0:00:07]}  e2 {[%clk 0:00:06]} 35. Kd2 {[%clk 0:00:04]}  Rf1 {[%clk 0:00:06]} 36. Re1 {[%clk 0:00:04]}  Kd6 {[%clk 0:00:07]} 37. Be4 {[%clk 0:00:03]}  Nf6 {[%clk 0:00:07]} 38. Bg2 {[%clk 0:00:03]}  Rf2 {[%clk 0:00:06]} 39. c7 {[%clk 0:00:03]}  Bg4 {[%clk 0:00:06]} 40. h3 {[%clk 0:00:01]}  Bc8 {[%clk 0:00:06]} 41. Rb6+ {[%clk 0:00:02]}  Kxc7 {[%clk 0:00:06]} 42. Rc6+ {[%clk 0:00:02]}  Kd7 {[%clk 0:00:07]} 43. Bh1 {[%clk 0:00:03]}  Bb7 {[%clk 0:00:05]} 44. Rxf6 {[%clk 0:00:04]}  Rxf6 {[%clk 0:00:01]} 45. Bxb7 {[%clk 0:00:05]}  Rb6 {[%clk 0:00:02]} 46. Be4 {[%clk 0:00:05]}  Rxb2+ {[%clk 0:00:03]} 47. Bc2 {[%clk 0:00:06]}  Rb5 {[%clk 0:00:02]} 48. Rxe2 {[%clk 0:00:06]}  Rh5 {[%clk 0:00:03]} 49. Re3 {[%clk 0:00:05]}  g6 {[%clk 0:00:04]} 50. Rd3+ {[%clk 0:00:06]}  Kc6 {[%clk 0:00:04]} 51. Kc3 {[%clk 0:00:07]}  Kb5 {[%clk 0:00:04]} 52. Bb3 {[%clk 0:00:07]}  Kb6 {[%clk 0:00:05]} 53. Rd6+ {[%clk 0:00:07]}  Kc7 {[%clk 0:00:05]} 54. Rd3 {[%clk 0:00:08]}  Kc6 {[%clk 0:00:05]} 55. a4 {[%clk 0:00:09]}  a5 {[%clk 0:00:06]} 56. Bc4 {[%clk 0:00:10]}  Kc5 {[%clk 0:00:06]} 57. Bb5 {[%clk 0:00:10]}  Rh4 {[%clk 0:00:06]} 58. Re3 {[%clk 0:00:10]}  Rh5 {[%clk 0:00:05]} 59. Bd7 {[%clk 0:00:10]}  Rd5 {[%clk 0:00:05]} 60. Bg4 {[%clk 0:00:10]}  h5 {[%clk 0:00:05]} 61. Bf3 {[%clk 0:00:10]}  Rf5 {[%clk 0:00:05]} 62. Be4 {[%clk 0:00:10]}  Rf6 {[%clk 0:00:06]} 63. Bd3 {[%clk 0:00:10]}  Kd5 {[%clk 0:00:05]} 64. Bc4+ {[%clk 0:00:10]}  Kd6 {[%clk 0:00:06]} 65. Re4 {[%clk 0:00:09]}  g5 {[%clk 0:00:06]} 66. Kd4 {[%clk 0:00:09]}  Rg6 {[%clk 0:00:05]} 67. Re5 {[%clk 0:00:09]}  g4 {[%clk 0:00:05]} 68. Rd5+ {[%clk 0:00:09]}  Kc6 {[%clk 0:00:05]} 69. Rxh5 {[%clk 0:00:08]}  g3 {[%clk 0:00:05]} 70. Bd5+ {[%clk 0:00:09]}  Kb6 {[%clk 0:00:05]} 71. Bg2 {[%clk 0:00:10]}  Rf6 {[%clk 0:00:04]} 72. Rg5 {[%clk 0:00:09]}  Rf2 {[%clk 0:00:02]} 73. Rxg3 {[%clk 0:00:08]}  Ra2 {[%clk 0:00:02]} 74. Rg6+ {[%clk 0:00:09]}  Kc7 {[%clk 0:00:03]} 75. Bc6 {[%clk 0:00:10]}  Rh2 {[%clk 0:00:03]} 76. Rh6 {[%clk 0:00:09]}  Rc2 {[%clk 0:00:02]} 77. Bb5 {[%clk 0:00:09]}  Rd2+ {[%clk 0:00:02]} 78. Ke3 {[%clk 0:00:09]}  Rc2 {[%clk 0:00:02]} 79. h4 {[%clk 0:00:09]}  Kd8 {[%clk 0:00:03]} 80. h5 {[%clk 0:00:09]}  Ke7 {[%clk 0:00:04]} 81. Rh7+ {[%clk 0:00:10]}  Kf6 {[%clk 0:00:04]} 82. Ra7 {[%clk 0:00:09]}  Rc3+ {[%clk 0:00:03]} 83. Kd4 {[%clk 0:00:09]}  Rh3 {[%clk 0:00:04]} 84. h6 {[%clk 0:00:09]}  Kg5 {[%clk 0:00:02]} 85. Rxa5 {[%clk 0:00:08]}  Kxh6 {[%clk 0:00:01]} 86. Ra8 {[%clk 0:00:09]}  Kg6 {[%clk 0:00:02]} 87. Re8 {[%clk 0:00:09]}  Kf6 {[%clk 0:00:02]} 88. Kc5 {[%clk 0:00:09]}  Kf7 {[%clk 0:00:02]} 89. Re1 {[%clk 0:00:08]}  Rh5+ {[%clk 0:00:02]} 90. Kb6 {[%clk 0:00:09]}  Rh6+ {[%clk 0:00:03]} 91. Kb7 {[%clk 0:00:09]}  Kf6 {[%clk 0:00:03]} 92. a5 {[%clk 0:00:09]}  Rh7+ {[%clk 0:00:03]} 93. Kb6 {[%clk 0:00:10]}  Rh8 {[%clk 0:00:03]} 94. a6 {[%clk 0:00:10]}  Rb8+ {[%clk 0:00:03]} 95. Kc6 {[%clk 0:00:11]}  Rc8+ {[%clk 0:00:03]} 96. Kb7 {[%clk 0:00:11]}  Rc5 {[%clk 0:00:04]} 97. Bc6 {[%clk 0:00:11]}  Re5 {[%clk 0:00:02]} 98. Rxe5 {[%clk 0:00:11]} 1-0


[Site "https://www.chess.com"]

[Event "Titled Tuesday Blitz November 22 Late 2022"]
[White "Gerbelli Neto, Eduardo"]
[Black "Cortes Orihuela, Javier"]
[WhiteFideId "2103281"]
[BlackFideId "3414329"]
[WhiteElo "2178"]
[BlackElo "2080"]
[Result "0-1"]
[Round "08"]
[TimeControl "180+1"]
[Date "2022.11.23"]
[WhiteClock "0:00:33"]
[BlackClock "0:00:43"]

1. e4 {[%clk 0:03:00]}  e5 {[%clk 0:03:00]} 2. Nf3 {[%clk 0:02:59]}  Nc6 {[%clk 0:03:00]} 3. d4 {[%clk 0:02:58]}  exd4 {[%clk 0:03:01]} 4. Nxd4 {[%clk 0:02:59]}  Nf6 {[%clk 0:03:02]} 5. Nc3 {[%clk 0:02:58]}  Bb4 {[%clk 0:03:01]} 6. Nxc6 {[%clk 0:02:58]}  bxc6 {[%clk 0:03:02]} 7. Bd3 {[%clk 0:02:58]}  d5 {[%clk 0:03:01]} 8. e5 {[%clk 0:02:57]}  Qe7 {[%clk 0:02:55]} 9. O-O {[%clk 0:02:53]}  Nd7 {[%clk 0:02:38]} 10. Bf4 {[%clk 0:02:27]}  Nc5 {[%clk 0:02:06]} 11. Ne2 {[%clk 0:02:06]}  Ne6 {[%clk 0:01:53]} 12. c3 {[%clk 0:01:44]}  Bc5 {[%clk 0:01:50]} 13. b4 {[%clk 0:01:38]}  Bb6 {[%clk 0:01:50]} 14. Bg3 {[%clk 0:01:38]}  h5 {[%clk 0:01:48]} 15. h4 {[%clk 0:01:36]}  g5 {[%clk 0:01:48]} 16. hxg5 {[%clk 0:01:32]}  h4 {[%clk 0:01:48]} 17. Bh2 {[%clk 0:01:29]}  Qxg5 {[%clk 0:01:19]} 18. Qc1 {[%clk 0:01:07]}  h3 {[%clk 0:01:02]} 19. Qxg5 {[%clk 0:01:04]}  Nxg5 {[%clk 0:01:03]} 20. Nd4 {[%clk 0:00:48]}  hxg2 {[%clk 0:00:55]} 21. Kxg2 {[%clk 0:00:39]}  Bh3+ {[%clk 0:00:52]} 22. Kg1 {[%clk 0:00:38]}  Bxd4 {[%clk 0:00:42]} 23. cxd4 {[%clk 0:00:35]}  Nf3+ {[%clk 0:00:42]} 24. Kh1 {[%clk 0:00:33]}  Bxf1 {[%clk 0:00:43]} 0-1


[Site "https://www.chess.com"]

[Event "Titled Tuesday Blitz November 22 Late 2022"]
[White "Ghazarian, Kirk"]
[Black "Zhigalko, Sergei"]
[WhiteFideId "30908604"]
[BlackFideId "13502956"]
[WhiteElo "2346"]
[BlackElo "2662"]
[Result "0-1"]
[Round "08"]
[TimeControl "180+1"]
[Date "2022.11.22"]
[WhiteClock "0:00:41"]
[BlackClock "0:01:52"]

1. d4 {[%clk 0:03:00]}  Nf6 {[%clk 0:03:00]} 2. Nf3 {[%clk 0:03:01]}  e6 {[%clk 0:03:00]} 3. Bf4 {[%clk 0:03:01]}  b6 {[%clk 0:02:58]} 4. e3 {[%clk 0:03:00]}  Bb7 {[%clk 0:02:58]} 5. Be2 {[%clk 0:03:00]}  Nh5 {[%clk 0:02:58]} 6. Bg5 {[%clk 0:02:59]}  Be7 {[%clk 0:02:59]} 7. Bxe7 {[%clk 0:02:59]}  Qxe7 {[%clk 0:03:00]} 8. O-O {[%clk 0:02:59]}  O-O {[%clk 0:03:00]} 9. c4 {[%clk 0:02:59]}  f5 {[%clk 0:03:01]} 10. Nc3 {[%clk 0:02:56]}  Nf6 {[%clk 0:03:01]} 11. Rc1 {[%clk 0:02:53]}  d6 {[%clk 0:03:00]} 12. b4 {[%clk 0:02:53]}  Nbd7 {[%clk 0:02:58]} 13. Nb5 {[%clk 0:02:51]}  Rfc8 {[%clk 0:02:57]} 14. Nd2 {[%clk 0:02:44]}  a6 {[%clk 0:02:47]} 15. Nc3 {[%clk 0:02:44]}  c5 {[%clk 0:02:47]} 16. bxc5 {[%clk 0:02:38]}  bxc5 {[%clk 0:02:46]} 17. Rb1 {[%clk 0:02:39]}  Rc7 {[%clk 0:02:37]} 18. Bf3 {[%clk 0:02:33]}  Bxf3 {[%clk 0:02:33]} 19. Qxf3 {[%clk 0:02:34]}  Rac8 {[%clk 0:02:33]} 20. d5 {[%clk 0:02:28]}  Ne5 {[%clk 0:02:32]} 21. Qe2 {[%clk 0:02:16]}  exd5 {[%clk 0:02:31]} 22. cxd5 {[%clk 0:02:14]}  c4 {[%clk 0:02:31]} 23. Nf3 {[%clk 0:02:09]}  Nxf3+ {[%clk 0:02:25]} 24. Qxf3 {[%clk 0:02:07]}  Qe5 {[%clk 0:02:26]} 25. Rfc1 {[%clk 0:02:04]}  Rc5 {[%clk 0:02:17]} 26. Na4 {[%clk 0:01:32]}  Rb5 {[%clk 0:02:04]} 27. Nb6 {[%clk 0:01:27]}  Rb8 {[%clk 0:01:59]} 28. a4 {[%clk 0:00:41]}  Rxb1 {[%clk 0:01:52]} 29. Rxb1 {[%clk 0:00:41]}  Rxb6 {[%clk 0:01:52]} 0-1


[Site "https://www.chess.com"]